Cogmind - Beta 16 @@@ ROGUE MODE // 2025.10.27 @ 13:26:37 Player: Moodge Result: Destroyed by Y-45 Defender with Beam Rifle Performance ------------- Evolutions (1) 500 Regions Visited (2) 400 Robots Destroyed (16) 80 Value Destroyed (337) 337 Prototype IDs (0) 0 Alien Tech Used (0) 0 Bonus (0) 0 TOTAL SCORE: 1317 Bonus ------- None Cogmind --------- Core Integrity 0/400 Matter 276/300 Energy 72/100 System Corruption 0% Temperature Cool (27) Movement Core (250) Ox4 Location -9/Materials Parts ------- > --- POWER (1) -------- (None) > --- PROPULSION (4) --- (None) > --- UTILITY (2) ------ Medium Storage Unit Visual Processing Unit > --- WEAPON (2) ------- EMP Blaster > --- INVENTORY (10) --- Aluminum Leg Hover Unit Medium Storage Unit Large Storage Unit Visual Processing Unit Mining Laser Mining Claw Peak State ------------ > --- POWER ------------ Ion Engine > --- PROPULSION ------- Aluminum Leg Aluminum Leg > --- UTILITY ---------- Small Storage Unit Improved Terrain Scanner > --- WEAPON ----------- Small Laser Assault Rifle > --- INVENTORY -------- Ion Engine EM Pulse Gun [Rating: 9] Favorites ----------- Power Light Ion Engine Engine Light Ion Engine Propulsion Aluminum Leg Leg Aluminum Leg Hover Unit Hover Unit Utility Medium Storage Unit Device Improved Terrain Scanner Storage Medium Storage Unit Processor Visual Processing Unit Weapon Mining Laser Energy Gun Small Laser Ballistic Gun Assault Rifle Launcher Grenade Launcher Special Weapon Mining Laser Slashing Weapon Mining Claw Build | -11 -10 -9 ------- Run | Yrd Mat Mat Slots Evolved 2 | . . 2 Power . | . . . Propulsion 2 | . . 2 Utility . | . . . Weapon . | . . . Parts Attached 21 | 9 8 4 Power 4 | 2 2 . Engine 4 | 2 2 . Core . | . . . Reactor . | . . . Propulsion 4 | 2 2 . Treads . | . . . Leg 3 | 2 1 . Wheel . | . . . Hover 1 | . 1 . Flight . | . . . Utility 5 | 2 1 2 Device 1 | 1 . . Storage 3 | 1 1 1 Processor 1 | . . 1 Hackware . | . . . Protection . | . . . Artifact . | . . . Weapon 8 | 3 3 2 Energy Gun 1 | 1 . . Energy Cannon . | . . . Ballistic Gun 1 | 1 . . Ballistic Cannon . | . . . Launcher 2 | . 1 1 Special Weapon 3 | 1 2 . Impact Weapon . | . . . Slashing Weapon 1 | . . 1 Piercing Weapon . | . . . Special Melee Weapon . | . . . Unidentified Prototypes . | . . . Parts Lost 11 | . 7 4 Power 3 | . 2 1 Propulsion 2 | . 1 1 Utility 1 | . 1 . Weapon 5 | . 3 2 Highest Loss Streak 3 | . 3 3 To Critical Strikes . | . . . Average Backups 3 | 1 2 6 Power . | 1 . . Propulsion . | . . 1 Utility 1 | . . 3 Weapon 1 | . . 2 Tool/Special . | . . . Unused Backups 5 | 2 . 3 Power 1 | 1 . . Propulsion . | . . . Utility 2 | . . 2 Weapon 2 | 1 . 1 Tool/Special . | . . . Average Slot Usage (%) 64 | . 67 58 Engine 7 | . 7 8 Leg 19 | . 20 15 Device 7 | . 11 . Storage 12 | . 14 11 Processor 1 | . . 5 Energy Gun 1 | . 1 . Launcher 2 | . 4 . Special Weapon 8 | . 6 13 Slashing Weapon 1 | . . 4 Peak Build Rating 9 | 9 9 8 Average Rating 6 | 6 6 5 On Entrance 5 | . 9 6 Avg Prop Armor Cover (%) 8 | . 8 . Naked Turns . | . . . Heaviest Build 16 | 14 15 16 Greatest Support 20 | 20 20 20 Greatest Overweight (x) 4 | 1 2 4 Average Overweight (x) . | . . . Largest Inventory Capacity 10 | 8 10 10 Average Capacity 9 | 7 9 10 Most Carried 8 | 7 8 8 Average Carried 3 | 2 2 6 Final Capacity 10 | 8 10 10 Final Carried 7 | 2 5 7 Class Distribution -------------------- 100% | Mutant Dominant Class ---------------- Mutant | -10/Materials Mutant | -9/Materials Resources | -11 -10 -9 ----------- Run | Yrd Mat Mat Matter Collected 501 | 306 156 39 Remotely . | . . . Salvage Created 403 | 213 190 . Parts 26 | 18 8 . Haulers Intercepted . | . . . Recyclers Shooed . | . . . Parts Field Recycled . | . . . Retrieved Matter . | . . . Parts Self-Destructed . | . . . Prevented . | . . . Parts Restored . | . . . Kills | -11 -10 -9 ------- Run | Yrd Mat Mat Combat Hostiles Destroyed 8 | . 8 . Guns 1 | . 1 . Cannons 3 | . 3 . AOE 4 | . 4 . Classes Destroyed 6 | 3 3 . Worker 2 | 2 . . Tunneler 3 | 3 . . Recycler 2 | 1 1 . Watcher 1 | . 1 . Swarmer 3 | . 3 . Grunt 5 | . 5 . Best Kill Streak 4 | 2 4 . Combat Bots Only 4 | . 4 . Max Kills in Single Turn 1 | 1 1 . Gunslinging . | . . . Exploded 1 | . 1 . Melee . | . . . Uniques/NPCs Destroyed . | . . . Combat | -11 -10 -9 -------- Run | Yrd Mat Mat Hostile Shots Fired 161 | . 89 72 Missed 54 | . 31 23 Hits 107 | . 58 49 Projectile 107 | . 58 49 Critical Strikes 4 | . 1 3 Damage Taken 1255 | . 642 613 Core 525 | . 115 410 Absorbed by Shields . | . . . Core Remaining (%) 77 | 100 54 . Volleys Fired 41 | 15 21 5 Largest 2 | 2 2 2 Hottest 200 | 140 200 200 Shots Fired 62 | 28 28 6 Gun 34 | 27 7 . Cannon . | . . . Launcher 11 | . 10 1 Special 17 | 1 11 5 Kinetic 12 | 12 . . Thermal 39 | 16 18 5 Explosive 10 | . 10 . Electromagnetic 1 | . . 1 Robot Hit Streak 7 | 7 4 1 Robot Miss Streak 3 | 3 2 3 Penetration Max . | . . . Secondary Targets . | . . . Shots Hit Robots 30 | 17 12 1 Core Hits 26 | 7 19 . Critical Kills 1 | 1 . . Critical Parts Destroyed . | . . . Critical Strikes 1 | 1 . . Destroy 1 | 1 . . Melee Attacks . | . . . Impact . | . . . Slashing . | . . . Piercing . | . . . Sneak Attacks . | . . . Combat Hostiles . | . . . Follow-up Attacks . | . . . Damage Inflicted 939 | 199 691 49 Guns 254 | 199 55 . Cannons . | . . . Explosions 517 | . 492 25 Melee . | . . . Ramming . | . . . Kinetic 114 | 114 . . Thermal 308 | 85 199 24 Explosive 492 | . 492 . Electromagnetic 25 | . . 25 Impact . | . . . Slashing . | . . . Piercing . | . . . Highest Corruption 1 | . 1 . Average Corruption 1 | . 1 . Corruption Purged . | . . . Corruption Blocked . | . . . Effects 3 | . 3 . Message Errors 1 | . 1 . Heat Flow Errors 1 | . 1 . Data Loss (minor) 1 | . 1 . Overload Shots . | . . . Overflow Damage . | . . . Projectiles . | . . . Explosions . | . . . Melee . | . . . Knockbacks . | . . . Impact . | . . . Kinetic . | . . . Secondary . | . . . Self-Inflicted Damage 14 | . 6 8 Shots 2 | . 1 1 Rammed . | . . . Targets Rammed . | . . . Kicked . | . . . Crushed . | . . . Highest Temperature 360 | 40 360 35 Average Temperature 117 | 25 151 14 Received Heat Transfer 543 | . 222 321 Effects 1 | . 1 . Damage (minor) 1 | . 1 . Siege Activations . | . . . Martial Activations . | . . . Shielding Activations . | . . . Robots Disrupted . | . . . Combat Hostiles . | . . . Robots Corrupted . | . . . Combat Hostiles . | . . . Parts Fried . | . . . Impact Corruptions . | . . . Robots Melted . | . . . Combat Hostiles . | . . . Parts Melted 1 | . 1 . Heat Transferred 675 | 200 425 50 Parts Sabotaged . | . . . Parts Stolen . | . . . Parts Stripped . | . . . Power Chain Reactions . | . . . Alert | -11 -10 -9 ------- Run | Yrd Mat Mat Maximum Alert Level 1 | . 1 . Low Security (%) 99 | 100 99 100 Level 1 . | . . . Level 2 . | . . . Level 3 . | . . . Level 4 . | . . . Level 5 . | . . . High Security . | . . . Max Security . | . . . Peak Influence 193 | 10 193 31 Initial 31 | . . 31 Average 60 | 1 101 5 Influence Increases 513 | 30 434 49 Destroy 0b10 Robot/C 160 | . 160 . Destroy 0b10 Robot/NC 40 | 30 10 . Destroy Leader 42 | . 42 . Successful Hack 23 | . 23 . Disable Machine 90 | . 90 . Destroy Structure 68 | . 64 4 Lose Combat Pursuer 90 | . 45 45 Influence Decreases 508 | 30 360 118 Entered New Map 43 | . . 43 Time Decay 375 | 30 290 55 Lost Part 90 | . 70 20 Squads Dispatched 5 | . 2 3 Investigation 3 | . 1 2 Extermination . | . . . Reinforcement 2 | . 1 1 Assault . | . . . Garrison . | . . . Intercept . | . . . Searches Triggered . | . . . Construction Impeded . | . . . Haulers Reinforced . | . . . Active Scanning Responses . | . . . Cargo Convoy Interrupts . | . . . Stealth | -11 -10 -9 --------- Run | Yrd Mat Mat Distress Signals 2 | . . 2 Communications Jammed . | . . . Distress Signals . | . . . Times Spotted 23 | . 15 8 Peak Tracking Total 5 | . 5 5 Tactical Retreats 3 | . 1 2 Traps | -11 -10 -9 ------- Run | Yrd Mat Mat Traps Triggered 3 | . 2 1 Indirectly . | . . . Trap Hack Attempts . | . . . Triggered . | . . . Disarmed . | . . . Reprogrammed . | . . . Reused . | . . . Traps Extracted . | . . . Installed . | . . . Triggered . | . . . Machines | -11 -10 -9 ---------- Run | Yrd Mat Mat Machines Disabled 6 | . 6 . Max in Single Turn 3 | . 3 . Machines Repaired . | . . . Machines Dismantled . | . . . Machines Sabotaged . | . . . Overloaded Fab Kills . | . . . Hacking | -11 -10 -9 --------- Run | Yrd Mat Mat Machines Accessed 9 | . 6 3 Terminals 8 | . 6 2 Fabricators . | . . . Repair Stations . | . . . Recycling Units . | . . . Scanalyzers 1 | . . 1 Garrison Access . | . . . Total Hacks 22 | . 16 6 Successful 12 | . 12 . Failed 10 | . 4 6 Catastrophic 2 | . . 2 Database Lockouts . | . . . Manual 13 | . 10 3 Terminals 21 | . 16 5 Fabricators . | . . . Repair Stations . | . . . Recycling Units . | . . . Scanalyzers 1 | . . 1 Garrison Access . | . . . Terminal Hacks 5 | . 5 . Record 1 | . 1 . Scanalyzer Index 1 | . 1 . Alert Level 1 | . 1 . Dispatch Records 1 | . 1 . Recall Investigation 1 | . 1 . Fabricator Hacks . | . . . Repair Station Hacks . | . . . Recycling Unit Hacks . | . . . Scanalyzer . | . . . Garrison Access Hacks . | . . . Unauthorized Hacks 7 | . 7 . Terminals 7 | . 7 . Track 2 | . 2 . Botnet 5 | . 5 . Fabricators . | . . . Repair Stations . | . . . Recycling Units . | . . . Scanalyzers . | . . . Garrison Access . | . . . Data Cores Recovered . | . . . Used . | . . . Hacking Detections 5 | . 3 2 Full Trace Events 4 | . 2 2 Feedback Events . | . . . Feedback Blocked . | . . . Robot Schematics Acquired . | . . . Robots Built . | . . . Authchips . | . . . Time . | . . . Total Robot Build Rating . | . . . Part Schematics Acquired . | . . . Parts Built . | . . . Authchips . | . . . Time . | . . . Total Part Build Rating . | . . . Part Studies Acquired . | . . . Parts Repaired . | . . . Time . | . . . Parts Recycled . | . . . Recycled Matter . | . . . Retrieved Matter . | . . . Retrieved Components . | . . . Parts Scanalyzed . | . . . Part Schematics Acquired . | . . . Parts Damaged . | . . . Bothacking | -11 -10 -9 ------------ Run | Yrd Mat Mat Used RIF Installer . | . . . Robots Hacked . | . . . Non-combat . | . . . Combat . | . . . Robot Hacks Applied . | . . . Relay Couplers Released . | . . . Fabnet Peak Effective % . | . . . Robots Rewired . | . . . Allies Hacked . | . . . Hacks Repelled . | . . . Allies | -11 -10 -9 -------- Run | Yrd Mat Mat Total Allies . | . . . Largest Group . | . . . Highest-Rated Group . | . . . Highest-Rated Ally . | . . . Total Orders . | . . . Ally Attacks . | . . . Total Damage . | . . . Kills . | . . . Allies Corrupted . | . . . Allies Melted . | . . . Intel | -11 -10 -9 ------- Run | Yrd Mat Mat Active Infowar (turns) 849 | 99 560 190 Optics 190 | . . 190 Terrain 659 | 99 560 . Robot Analysis Total . | . . . Derelict Logs Recovered . | . . . Drone Launches . | . . . Drone Recoveries . | . . . Exploration | -11 -10 -9 ------------- Run | Yrd Mat Mat Turns Passed 1205 | 159 698 348 Spaces Moved 660 | 81 425 154 Core 68 | 22 . 46 Treads . | . . . Legs 574 | 59 407 108 Wheels . | . . . Hover 18 | . 18 . Flight . | . . . Fastest Speed 50 | 50 120 120 Average Speed 139 | 110 142 146 Slowest Speed 250 | 120 190 250 Overloaded Moves . | . . . Propulsion Burnouts . | . . . Robots Hopped . | . . . Potential Cave-ins . | . . . Cave-ins Triggered . | . . . Exploration Rate (%) 36 | 5 79 24 Regions Visited 2 Branch Regions . Pre-discovered Areas . | . . . Known Exits Taken . | . . . Unknown Exits Taken 2 | 1 1 . Scrap Searched . | . . . Spaces Dug 3 | . . 3 Terrain Destroyed 70 | . 66 4 Melee . | . . . Projectile 6 | . 2 4 AOE 64 | . 64 . Terrain Rammed . | . . . Walls Destroyed . | . . . Machines Disabled . | . . . Actions | -11 -10 -9 --------- Run | Yrd Mat Mat Total 849 | 121 468 260 Wait 94 | . 3 91 Move 658 | 80 424 154 Hop . | . . . Pick Up 28 | 13 10 5 Fast Attach . | . . . Attach 16 | 7 6 3 Detach . | . . . Swap 7 | 2 3 2 Drop 5 | 4 1 . Fire 41 | 15 21 5 Melee . | . . . Ram . | . . . Kick . | . . . Crush . | . . . Escape Stasis . | . . . Rewire . | . . . Trap . | . . . Miscellaneous . | . . . Route ------- -11/Scrapyard -10/Materials (discovered 5 exits: *Mat x2 / [*Min x2] / [*Sub]) -9/Materials History --------- Turn | Location | Event 11 | -11/Scrapyard | Discovered new exit (range 16) 160 | -11/Scrapyard | Entered Materials 271 | -10/Materials | Lost 3 parts (1p2w) 281 | -10/Materials | Discovered new exit (range 15) 306 | -10/Materials | Build established: Mutant 428 | -10/Materials | Discovered new exit (range 10) 437 | -10/Materials | Discovered new exit (range 7) 483 | -10/Materials | Lost 3 parts (1p1n1w) 584 | -10/Materials | Discovered new exit (range 8) 844 | -10/Materials | Discovered new exit (range 8) 858 | -10/Materials | Entered another Materials area 858 | -9/Materials | Evolved 2 slots: Propulsion x2 1155 | -9/Materials | Lost 3 parts (1p1n1w) 1158 | -9/Materials | Core integrity fell below 50% 1164 | -9/Materials | Core integrity fell below 20% 1206 | -9/Materials | Destroyed by Y-45 Defender with Beam Rifle Last Messages --------------- ALERT: Suspicious activity at Terminal M010. Dispatching Investigation squad. Aluminum Leg destroyed. Triggered Blade Trap. Massive razor-sharp blades shoot up from within the floor. Mining Laser severed. Aluminum Leg severed. Acquired Aluminum Leg. Lgt. Ion Engine destroyed. Acquired Mining Laser. Critical hit (Burn: +37). Mining Laser destroyed. Critical hit (Burn: +37). G-34 Mercenary destroyed. Mining Claw destroyed. K-01 Serf collects debris. Acquired EMP Blaster. Door malfunctions. Critical hit (Burn: +37). Map ----- +----------------------------------------------------+ | ??????????????????????????????? | | ??????????????????????????????? | | ??????????????????????????????? | | ??????????????????????????????? | | ??????????????????????????????? | | ??????????????????????????????? | | ?????????????????????????????? | | ?????????????????????????????? | | ?????????????????????????????? | | ????????????????????????????? | | ????????????????????????????? | | ????????????????????????????? | | ????????????????????????????? | | ????????????????????????????? | | ???????###################### | | ???????# | | ???????# [ | | ???????# | | ???????# | | ######## ############### | | # ## #???????????#""!! | | # ## #???????????#""!! | | # ## #???????????#"T!% " | | # ## #####??####?#"" " | | # # ## ##"" " | | # @ ## #### | | # # T + #### | | # # Y ## + | | # ## ### ######### | | # ## #?# ??????## | | # ## #?# ???????#"" | | # ## #?# ?? ???????##" | | #####/## #########+######???#" | | ????# #???# | | ????# ##??#" | | ???#####+######### "#??#" | | ???# #????# "T" T#??#" | | ???#""" ######! """ "#??# | | ???#""" # [%*%= ##??## | | ???#""" # !=[ #????? | | ???# + #######+###????? | | ???# # #???? ?????? | | ???# # #???# """ #???? | | ???# ####???# """ #???? | | ???# #??????# """ #???? | | ???######## #??????# #???? | | ??????????###??????# #???? | | ???????????????????########???? | | ??????????????????????????????? | | ??????????????????????????????? | +----------------------------------------------------+ Best States ------------- Heat Dissipation 28 Energy Generation 10 Energy Capacity 250 Matter Stores 300 Matter Capacity 300 Sight Range 18 Terrain Scan Range 16 Terrain Scan Density 10 Evasion (%) 55 Item Schematics ----------------- None Robot Schematics ------------------ None Fabricated ------------ Nothing Repaired ---------- Nothing Studied --------- None Alien Tech Used ----------------- None Achievements -------------- None Challenges ------------ None Game ------ Seed MetafieldImprovedGriptreads Manual? 0 Play Time 00:13:54 Cumulative 24.2 hours Start 2025.10.27 @ 13:10:10 End 2025.10.27 @ 13:26:37 Sessions 1 Manual Loads 0 Difficulty Rogue Special Mode None Game No. 79 Rogue 79 Adventurer 0 Explorer 0 Win Type - Total 0 Types 0/0/0/0/0/0/0/0/0/0 Lore% 10 Gallery% 22 Achievement% 18 Wizard Run 0 Options --------- Layout 1 ASCII 0 Keyboard 0 Movement Mouse Keybinds 0 Fullscreen 2 Font 32/SmallcapsGlow Map View 50x35 Zoom Use 0% Tactical HUD 0 Map Filters NONE Filters NONE Steam 1 RUN: f83eb9db-1126-46d2-98d2-d2469bee440d